bitfinex/quotes_BTCUSD_20240629
["timestamp","ask_amount","ask_price","bid_price","bid_amount"]
[1719678678067,10.57761221,60995.0,60994.0,5.13152486]
[1719678678272,10.57761221,60995.0,60994.0,5.02933559]
[1719678678450,10.57761221,60995.0,60994.0,5.13152486]
[1719678679068,10.57761221,60995.0,60994.0,4.43152486]
[1719678679854,10.57761221,60995.0,60994.0,4.32930974]
[1719678680127,10.57761221,60995.0,60994.0,4.43149676]
[1719678682077,10.57761221,60995.0,60994.0,5.54099676]
[1719678682289,10.31198177,60995.0,60994.0,8.69604625]
[1719678682503,10.31198177,60995.0,60994.0,8.70831768]
[1719678682913,10.31198177,60995.0,60994.0,7.39232708]
[1719678683118,10.31198177,60995.0,60994.0,8.70831768]
[1719678683523,10.31198177,60995.0,60994.0,8.70831773]
[1719678686029,10.31198177,60995.0,60994.0,8.60612774]
[1719678686229,10.31198177,60995.0,60994.0,8.06466646]
[1719678686441,10.31198177,60995.0,60994.0,8.83565773]
[1719678686665,10.31198177,60995.0,60994.0,8.93784451]
[1719678688833,10.31198177,60995.0,60994.0,7.62185708]
[1719678689040,10.31198177,60995.0,60994.0,8.83564244]
[1719678689266,10.31198177,60995.0,60994.0,8.93782793]
[1719678691662,10.31198177,60995.0,60994.0,8.53482793]
[1719678692706,10.31198177,60995.0,60994.0,7.42322806]
[1719678692907,10.31198177,60995.0,60994.0,8.43264244]
[1719678693124,10.31198177,60995.0,60994.0,7.32104257]
[1719678693300,10.31198177,60995.0,60994.0,8.43264244]
[1719678693539,10.31198177,60995.0,60994.0,8.53482793]
[1719678695748,10.31198177,60995.0,60994.0,7.66166087]
[1719678695959,10.31198177,60995.0,60994.0,8.43264244]
[1719678696135,10.31198177,60995.0,60994.0,8.53482793]
[1719678697123,10.31198177,60995.0,60994.0,8.93782793]
[1719678699104,10.31198177,60995.0,60994.0,7.72404257]
[1719678699314,10.31198177,60995.0,60994.0,8.93782811]
[1719678702305,10.31198177,60995.0,60994.0,8.49502343]
[1719678702657,10.31198177,60995.0,60994.0,8.93782687]
[1719678702863,10.31198177,60995.0,60994.0,8.93782689]
[1719678705504,10.31198177,60995.0,60994.0,8.73345605]
[1719678705709,10.31198177,60995.0,60994.0,8.93782687]
[1719678708265,10.31198177,60995.0,60994.0,8.67542687]
[1719678708884,10.31198177,60995.0,60994.0,8.6754077]
[1719678709559,10.31198177,60995.0,60994.0,8.27224768]
[1719678711714,10.31198177,60995.0,60994.0,6.50440534]
[1719678711929,10.24451111,60995.0,60994.0,6.27915781]
[1719678712133,10.24451111,60995.0,60994.0,7.87990496]
[1719678712336,10.24451111,60995.0,60994.0,7.13992557]
[1719678712480,10.24451111,60995.0,60994.0,7.152197]
[1719678712897,10.24051111,60995.0,60994.0,7.151197]
[1719678713109,10.24451111,60995.0,60994.0,7.152197]
[1719678713308,10.24451111,60995.0,60994.0,7.151197]
[1719678713510,10.24451111,60995.0,60994.0,5.76002887]
[1719678713712,10.23551111,60995.0,60994.0,5.75902887]
[1719678714898,10.24751111,60995.0,60994.0,5.76102887]
[1719678715069,10.24751111,60995.0,60994.0,4.88792648]
[1719678715306,10.23951111,60995.0,60994.0,5.92590417]
[1719678715494,10.24651111,60995.0,60994.0,4.54737661]
[1719678715695,10.24651111,60995.0,60994.0,5.92690414]
[1719678716336,10.24651111,60995.0,60994.0,5.76091807]
[1719678716539,9.93198111,60995.0,60994.0,9.90095363]
[1719678716760,9.93198111,60995.0,60994.0,6.27184472]
[1719678717003,9.93198111,60995.0,60994.0,5.76091807]
[1719678718241,9.93198111,60995.0,60994.0,5.76087142]
[1719678718444,9.90408111,60995.0,60994.0,5.92676927]
[1719678718799,9.90408111,60995.0,60994.0,5.22676927]
[1719678719211,9.90408111,60995.0,60994.0,5.22667477]
[1719678720314,9.90408111,60995.0,60994.0,4.98575794]
[1719678720526,9.90408111,60995.0,60994.0,4.32925794]
[1719678720728,9.90408111,60995.0,60994.0,4.62969588]
[1719678720941,9.90408111,60995.0,60994.0,4.62980674]
[1719678721722,9.90408111,60995.0,60994.0,6.61475773]
[1719678721926,9.90408111,60995.0,60994.0,8.96331445]
[1719678722124,9.90408111,60995.0,60994.0,8.74238542]
[1719678722325,9.90408111,60995.0,60994.0,9.08297048]
[1719678723656,9.90408111,60995.0,60994.0,7.7671775]
[1719678723847,9.90408111,60995.0,60994.0,8.98084469]
[1719678724051,9.90408111,60995.0,60994.0,9.08302023]
[1719678726972,9.90408111,60995.0,60994.0,9.08296877]
[1719678727506,9.90408111,60995.0,60994.0,9.08297049]
[1719678727717,9.61841072,60995.0,60994.0,9.08297049]
[1719678729450,9.61841072,60995.0,60994.0,9.07957049]
[1719678730073,9.61841072,60995.0,60994.0,9.07953546]
[1719678730505,9.61841072,60995.0,60994.0,6.64788267]
[1719678730916,9.61841072,60995.0,60994.0,6.64628673]
[1719678733169,9.61841072,60995.0,60994.0,6.64628374]
[1719678734570,9.61841072,60995.0,60994.0,6.97438374]
[1719678736397,9.61841072,60995.0,60994.0,5.65862877]
[1719678736600,9.61841072,60995.0,60994.0,6.89988008]
[1719678736807,9.61841072,60995.0,60994.0,6.97438008]
[1719678739688,9.61841072,60995.0,60994.0,6.97438425]
[1719678740097,9.61841072,60995.0,60994.0,6.97438358]
[1719678740297,9.61841072,60995.0,60994.0,6.27438358]
[1719678742374,9.61841072,60995.0,60994.0,6.27438366]
[1719678742731,9.61841072,60995.0,60994.0,6.27438453]
[1719678743251,9.61841072,60995.0,60994.0,7.04938692]
[1719678743691,9.61841072,60995.0,60994.0,7.0510516]
[1719678744654,9.61841072,60995.0,60994.0,7.86371162]
[1719678744864,9.61841072,60995.0,60994.0,9.48270439]
[1719678745244,9.61841072,60995.0,60994.0,9.99356503]
[1719678746192,9.61841072,60995.0,60994.0,9.99356154]
[1719678747148,9.61841072,60995.0,60994.0,10.06167386]
[1719678747371,9.61841072,60995.0,60994.0,9.98357386]
[1719678747586,9.61841072,60995.0,60994.0,7.70951714]
[1719678747803,9.61841072,60995.0,60994.0,7.1986565]
[1719678748243,9.61841072,60995.0,60994.0,6.8775565]
[1719678748448,9.61841072,60995.0,60994.0,6.87755985]
[1719678748867,10.17541072,60995.0,60994.0,6.72805746]
[1719678749075,10.17541072,60995.0,60994.0,3.79319675]
[1719678749290,10.17541072,60995.0,60994.0,5.17549046]
[1719678749496,10.17541072,60995.0,60994.0,3.79153207]
[1719678749719,10.17541072,60995.0,60994.0,5.17549931]
[1719678751854,10.17541072,60995.0,60994.0,5.17549086]
[1719678752272,10.17541072,60995.0,60994.0,5.17546851]
[1719678755224,10.17541072,60995.0,60994.0,9.149518]
[1719678755437,10.17541072,60995.0,60994.0,7.76724624]
[1719678755612,10.17541072,60995.0,60994.0,9.15120623]
[1719678758611,10.17541072,60995.0,60994.0,8.27812412]
[1719678758808,10.17541072,60995.0,60994.0,9.15120826]
[1719678758939,10.17541072,60995.0,60994.0,7.76724624]
[1719678759136,10.17541072,60995.0,60994.0,9.15120827]
[1719678761391,9.93341072,60995.0,60994.0,9.15120827]
[1719678761590,9.61841072,60995.0,60994.0,9.15120827]
[1719678761870,9.61841072,60995.0,60994.0,8.64032972]
[1719678762080,9.61841072,60995.0,60994.0,9.15120786]
[1719678765126,9.61841072,60995.0,60994.0,9.15117688]
[1719678765504,9.61841072,60995.0,60994.0,9.39117688]
[1719678765732,9.61841072,60995.0,60994.0,9.81508428]
[1719678765963,9.61841072,60995.0,60994.0,5.33017415]
[1719678766175,9.61841072,60995.0,60994.0,5.16403413]
[1719678766366,9.61841072,60995.0,60994.0,5.32851502]
[1719678767028,9.6007172,60995.0,60994.0,5.08851502]
[1719678767233,9.6007172,60995.0,60994.0,5.48316945]
[1719678767671,9.4121172,60995.0,60994.0,5.81126945]
[1719678767881,9.4121172,60995.0,60994.0,6.53897741]
[1719678767882,9.32868543,60995.0,60994.0,6.53897741]
[1719678768108,9.32868543,60995.0,60994.0,5.32533575]
[1719678768346,9.32868543,60995.0,60994.0,6.53885621]
[1719678768794,9.32468543,60995.0,60994.0,6.53785621]
[1719678769007,9.32068543,60995.0,60994.0,6.53785621]
[1719678769216,9.31768543,60995.0,60994.0,6.53785621]
[1719678769443,9.32468543,60995.0,60994.0,6.53885621]
[1719678769926,9.31768543,60995.0,60994.0,6.53785621]
[1719678770339,9.32468543,60995.0,60994.0,6.53885621]
[1719678770834,9.32468543,60995.0,60994.0,7.92435621]
[1719678771083,9.32468543,60995.0,60994.0,10.5129057]
[1719678771317,9.32468543,60995.0,60994.0,10.52525978]
[1719678771551,9.32468543,60995.0,60994.0,11.03606764]
[1719678771796,9.32468543,60995.0,60994.0,10.16310493]
[1719678772050,9.32468543,60995.0,60994.0,11.03606764]
[1719678774281,9.32468543,60995.0,60994.0,10.86579836]
[1719678774537,9.32468543,60995.0,60994.0,11.03606763]
[1719678775554,9.32468543,60995.0,60994.0,10.30835967]
[1719678777065,9.32468543,60995.0,60994.0,11.03606763]
[1719678777581,9.32468543,60995.0,60994.0,10.69550388]
[1719678777838,9.32468543,60995.0,60994.0,11.03603425]
[1719678778549,9.32468543,60995.0,60994.0,10.30832629]
[1719678778790,9.31768543,60995.0,60994.0,10.30732629]
[1719678779023,9.01055182,60995.0,60994.0,10.30832629]
[1719678779514,9.01055182,60995.0,60994.0,9.90532629]
[1719678779860,9.00355182,60995.0,60994.0,9.90432629]
[1719678780280,9.01055182,60995.0,60994.0,9.90532629]
[1719678780499,8.68083783,60995.0,60994.0,9.90432629]
[1719678780710,8.68083783,60995.0,60994.0,9.76811412]
[1719678780923,8.42893932,60995.0,60994.0,9.90432626]
[1719678781360,8.43293932,60995.0,60994.0,9.90532626]
[1719678781638,8.42593932,60995.0,60994.0,9.90432626]
[1719678782054,8.43293932,60995.0,60994.0,9.90532626]
[1719678782722,8.42593932,60995.0,60994.0,9.90432626]
[1719678783162,8.1501266,60995.0,60994.0,9.90532626]
[1719678783368,8.1501266,60995.0,60994.0,9.90532598]
[1719678783576,8.1501266,60995.0,60994.0,8.27983321]
[1719678783782,8.1461266,60995.0,60994.0,7.7679717]
[1719678784202,8.1501266,60995.0,60994.0,7.7689717]
[1719678784639,8.1501266,60995.0,60994.0,8.1719717]
[1719678786393,8.1501266,60995.0,60994.0,7.83143985]
[1719678786608,8.1501266,60995.0,60994.0,8.17196935]
[1719678787461,8.14980902,60995.0,60994.0,8.17196935]
[1719678788474,8.14980902,60995.0,60994.0,7.76880933]
[1719678788711,8.14980902,60995.0,60994.0,5.82341263]
[1719678789140,8.14980902,60995.0,60994.0,5.81107246]
[1719678789577,8.14980902,60995.0,60994.0,5.64080821]
[1719678789787,8.14980902,60995.0,60994.0,5.81107291]
[1719678792769,8.14980902,60995.0,60994.0,4.93813286]
[1719678793024,8.14980902,60995.0,60994.0,5.81107193]
[1719678794072,8.14980902,60995.0,60994.0,6.21407193]
[1719678794282,8.14980902,60995.0,60994.0,9.78512142]
[1719678794486,8.14980902,60995.0,60994.0,9.79746159]
[1719678794690,8.14980902,60995.0,60994.0,10.30832223]
[1719678795983,8.14980902,60995.0,60994.0,10.1380573]
[1719678796190,8.14980902,60995.0,60994.0,10.30832193]
[1719678796403,8.14980902,60995.0,60994.0,10.30832183]
[1719678798259,8.14980902,60995.0,60994.0,10.06832183]
[1719678799120,8.14832455,60995.0,60994.0,10.06832183]
[1719678801517,8.14832455,60995.0,60994.0,10.07812183]
[1719678802378,8.14832455,60995.0,60994.0,8.86465366]
[1719678802580,7.82260195,60995.0,60994.0,10.07812113]
[1719678805358,7.82260195,60995.0,60994.0,10.80582909]
[1719678805564,7.82260195,60995.0,60994.0,10.80582918]
[1719678805993,7.82260195,60995.0,60994.0,10.07812122]
[1719678806395,7.82260195,60995.0,60994.0,10.80582918]
[1719678807417,7.82260195,60995.0,60994.0,11.05642918]
[1719678807615,7.82260195,60995.0,60994.0,10.7266645]
[1719678808692,7.82260195,60995.0,60994.0,10.99908783]
[1719678808903,7.82260195,60995.0,60994.0,10.93094298]
[1719678809110,7.82260195,60995.0,60994.0,10.99904509]
[1719678809319,7.82260195,60995.0,60994.0,10.86279341]
[1719678809528,7.82260195,60995.0,60994.0,10.72658917]
[1719678809729,7.81560195,60995.0,60994.0,11.13420187]
[1719678809932,7.81560195,60995.0,60994.0,11.13520187]
[1719678809933,7.82260195,60995.0,60994.0,11.13520187]
[1719678810834,7.81860195,60995.0,60994.0,11.13420187]
[1719678811060,7.82260195,60995.0,60994.0,10.8627934]
[1719678811822,7.82204624,60995.0,60994.0,9.81964607]
[1719678812024,7.82204624,60995.0,60994.0,9.47913662]
[1719678812225,7.69496686,60995.0,60994.0,10.86279148]
[1719678812426,7.64833086,60995.0,60994.0,10.86279148]
[1719678812657,7.63233086,60995.0,60994.0,11.76471748]
[1719678813034,7.62533086,60995.0,60994.0,11.76371748]
[1719678813359,7.63033086,60995.0,60994.0,11.79375455]
[1719678813733,7.62633086,60995.0,60994.0,12.06516264]
[1719678814049,7.62533086,60995.0,60994.0,12.06516264]
[1719678814435,7.58256123,60995.0,60994.0,12.06416264]
[1719678814654,7.56045509,60995.0,60994.0,12.06516264]
[1719678814864,7.56045509,60995.0,60994.0,11.92895841]
[1719678815849,7.56545509,60995.0,60994.0,11.92995841]
[1719678816381,7.44802005,60995.0,60994.0,11.92995719]
[1719678817013,7.32612037,60995.0,60994.0,11.92995719]
[1719678818583,7.32612037,60995.0,60994.0,11.82778896]
[1719678818786,7.32612037,60995.0,60994.0,11.92994091]
[1719678818991,7.32612037,60995.0,60994.0,11.9299409]
[1719678820794,7.27012037,60995.0,60994.0,11.8554409]
[1719678821011,7.27012037,60995.0,60994.0,11.9299409]
[1719678821251,7.23476149,60995.0,60994.0,11.9299409]
[1719678821668,7.23476149,60995.0,60994.0,11.31702236]
[1719678821873,7.23476149,60995.0,60994.0,11.92993007]
[1719678822090,7.23065591,60995.0,60994.0,11.92993007]
[1719678822295,7.21122713,60995.0,60994.0,11.92993007]
[1719678822516,7.18567364,60995.0,60994.0,11.92993007]
[1719678822937,7.18567364,60995.0,60994.0,11.67933007]
[1719678824709,7.1634537,60995.0,60994.0,11.40692664]
[1719678824911,7.1634537,60995.0,60994.0,11.67933623]
[1719678826071,7.1634537,60995.0,60994.0,11.34873623]
[1719678826472,7.1634537,60995.0,60994.0,11.07633179]
[1719678826849,7.1474537,60995.0,60994.0,11.07633179]
[1719678827215,7.14334813,60995.0,60994.0,11.07633179]
[1719678827627,7.10534813,60995.0,60994.0,11.07633179]
[1719678828203,7.10124256,60995.0,60994.0,10.56557347]
[1719678828358,7.10124256,60995.0,60994.0,11.34874889]
[1719678829697,7.04524256,60995.0,60994.0,11.34874889]
[1719678829895,7.04524256,60995.0,60994.0,11.07634004]
[1719678831313,7.04524256,60995.0,60994.0,9.86294748]
[1719678831493,7.04524256,60995.0,60994.0,11.34872892]
[1719678831692,7.04524256,60995.0,60994.0,9.69269546]
[1719678831888,7.04524256,60995.0,60994.0,11.34872892]
[1719678834199,7.04113702,60995.0,60994.0,11.34872892]
[1719678834405,7.0312098,60995.0,60994.0,11.34872892]
[1719678835036,7.02710426,60995.0,60994.0,11.34872892]
[1719678835244,7.01688419,60995.0,60994.0,11.34872892]
[1719678835444,7.01277865,60995.0,60994.0,11.34872892]
[1719678835864,7.00867311,60995.0,60994.0,11.34872892]
[1719678836061,7.00867311,60995.0,60994.0,11.07632568]
[1719678836262,7.00456757,60995.0,60994.0,11.07632568]
[1719678837629,7.00456757,60995.0,60994.0,11.38284254]
[1719678837846,7.00456757,60995.0,60994.0,11.34879086]
[1719678839118,7.00456757,60995.0,60994.0,11.07637743]
[1719678840572,7.00456757,60995.0,60994.0,11.34879086]
[1719678840787,7.00456757,60995.0,60994.0,11.21253345]
[1719678841022,7.00456757,60995.0,60994.0,11.34873505]
[1719678843321,7.00456757,60995.0,60994.0,10.56556643]
[1719678843530,7.00456757,60995.0,60994.0,11.34872288]
[1719678843742,7.00456757,60995.0,60994.0,11.17847146]
[1719678843944,7.00456757,60995.0,60994.0,11.34872286]
[1719678846407,7.00456757,60995.0,60994.0,10.94011951]
[1719678846614,7.00456757,60995.0,60994.0,11.34872287]
[1719678847230,6.94756757,60995.0,60994.0,11.34872287]
[1719678849761,6.93175276,60995.0,60994.0,11.34872278]
[1719678852449,6.91232276,60995.0,60994.0,11.61536357]
[1719678852854,6.91232276,60995.0,60994.0,11.61536169]
[1719678853223,6.88677276,60995.0,60994.0,9.95933625]
[1719678853406,6.88677276,60995.0,60994.0,11.61536232]
[1719678853614,6.88677276,60995.0,60994.0,10.54256151]
[1719678855935,6.88677276,60995.0,60994.0,8.48393544]
[1719678856139,6.88677276,60995.0,60994.0,9.94211097]
[1719678857360,6.85887276,60995.0,60994.0,9.94211097]
[1719678859061,6.85887276,60995.0,60994.0,8.72869304]
[1719678859188,6.85887276,60995.0,60994.0,11.02068875]
[1719678860724,6.80387276,60995.0,60994.0,10.74827567]
[1719678860929,6.80387276,60995.0,60994.0,11.07637567]
[1719678862462,6.80387276,60995.0,60994.0,11.3487879]
[1719678862870,6.77177276,60995.0,60994.0,11.17852787]
[1719678863082,6.77177276,60995.0,60994.0,11.34878573]
[1719678864329,6.77177276,60995.0,60994.0,11.07637315]
[1719678865393,6.77177276,60995.0,60994.0,11.3487884]
[1719678865613,6.77177276,60995.0,60994.0,11.34878842]
[1719678866252,6.77177276,60995.0,60994.0,11.27428842]
[1719678866464,6.77177276,60995.0,60994.0,11.34878842]
[1719678866692,7.02007276,60995.0,60994.0,10.67746242]
[1719678866901,7.02007276,60995.0,60994.0,5.85269194]
[1719678866902,7.35227276,60995.0,60994.0,5.85269194]
[1719678867103,7.35227276,60995.0,60994.0,5.7448313]
[1719678867309,7.35227276,60995.0,60994.0,5.59532456]
[1719678867500,7.35227276,60995.0,60994.0,5.66982456]
[1719678868040,7.34727276,60995.0,60994.0,5.69182456]
[1719678868240,7.36127276,60995.0,60994.0,5.69282456]
[1719678868447,7.35327276,60995.0,60994.0,5.69182456]
[1719678868646,7.35327276,60995.0,60994.0,5.69208305]
[1719678869464,7.36727276,60995.0,60994.0,5.69308305]
[1719678869666,7.36727276,60995.0,60994.0,5.69304266]
[1719678872071,7.36727276,60995.0,60994.0,5.69303962]
[1719678872487,7.36727276,60995.0,60994.0,6.0211446]
[1719678875109,7.36727276,60995.0,60994.0,6.02114496]
[1719678878093,7.36727276,60995.0,60994.0,5.51029071]
[1719678878319,7.36727276,60995.0,60994.0,6.02114737]
[1719678880759,7.36727276,60995.0,60994.0,5.36458737]
[1719678880941,7.36727276,60995.0,60994.0,5.62778958]
[1719678881140,7.36727276,60995.0,60994.0,4.72947364]
[1719678881343,7.36727276,60995.0,60994.0,4.43389324]
[1719678881548,7.36727276,60995.0,60994.0,4.50119402]
[1719678881744,7.36727276,60995.0,60994.0,4.08261012]
[1719678881945,7.36727276,60995.0,60994.0,4.2869743]
[1719678882202,7.36727276,60995.0,60994.0,4.3099743]
[1719678882400,7.36727276,60995.0,60994.0,4.4099743]
[1719678884424,7.36727276,60995.0,60994.0,3.40059321]
[1719678884632,7.36727276,60995.0,60994.0,4.40997027]
[1719678886241,7.36727276,60995.0,60994.0,5.21597027]
[1719678886455,7.36727276,60995.0,60994.0,4.71764387]
[1719678887263,7.36727276,60995.0,60994.0,4.01764387]
[1719678887734,7.36727276,60995.0,60994.0,4.01764372]
[1719678889713,7.04662796,60995.0,60994.0,4.01764372]
[1719678890212,7.04662796,60995.0,60994.0,4.71764372]
[1719678890640,7.04662796,60995.0,60994.0,4.7274992]
[1719678890891,7.04662796,60995.0,60994.0,4.28571647]
[1719678891093,7.04662796,60995.0,60994.0,4.72749891]
[1719678891555,7.04662796,60995.0,60994.0,4.93186218]
[1719678893667,7.04662796,60995.0,60994.0,4.9220067]
[1719678894086,7.04662796,60995.0,60994.0,4.14947429]
[1719678894263,7.04662796,60995.0,60994.0,4.92200337]
[1719678895047,7.04662796,60995.0,60994.0,5.43132941]
[1719678897312,7.04662796,60995.0,60994.0,5.36314951]
[1719678897514,7.04662796,60995.0,60994.0,5.43126699]
[1719678898245,7.04662796,60995.0,60994.0,5.66079699]
[1719678899041,6.79832796,60995.0,60994.0,5.81582699]
[1719678899283,6.46612796,60995.0,60994.0,5.08432699]
[1719678899483,6.46612796,60995.0,60994.0,5.07332477]
[1719678900502,6.46612796,60995.0,60994.0,4.73269597]
[1719678900717,6.46612796,60995.0,60994.0,5.07326839]
[1719678903018,6.46612796,60995.0,60994.0,5.07323532]
[1719678903625,6.46612796,60995.0,60994.0,4.99873532]
[1719678903829,6.46612796,60995.0,60994.0,5.07323532]
[1719678906060,6.46612796,60995.0,60994.0,5.07323074]
[1719678906435,6.46612796,60995.0,60994.0,5.07323073]
[1719678907660,6.46612796,60995.0,60994.0,5.47623073]
[1719678908083,6.46612796,60995.0,60994.0,5.48741927]
[1719678909114,6.46612796,60995.0,60994.0,4.54628191]
[1719678909341,6.46612796,60995.0,60994.0,5.48741504]
[1719678911680,7.04672796,60995.0,60994.0,5.08441504]
[1719678911893,7.04672796,60995.0,60994.0,5.0732265]
[1719678912304,7.04672796,60995.0,60994.0,3.79153207]
[1719678912504,7.04672796,60995.0,60994.0,4.99881118]
[1719678913411,7.04672796,60995.0,60994.0,5.07331118]
[1719678913627,7.04672796,60995.0,60994.0,4.99881118]
[1719678913825,7.04672796,60995.0,60994.0,5.07331118]
[1719678915083,7.04672796,60995.0,60994.0,5.40181118]
[1719678915231,7.04672796,60995.0,60994.0,5.47631118]
[1719678915551,7.04672796,60995.0,60994.0,5.1469172]
[1719678915766,7.04672796,60995.0,60994.0,5.48750725]
[1719678915950,7.04672796,60995.0,60994.0,5.47631871]
[1719678916183,7.04672796,60995.0,60994.0,5.48750725]
[1719678916966,7.04672796,60995.0,60994.0,5.89050725]
[1719678917413,7.04672796,60995.0,60994.0,5.66097725]
[1719678918713,7.04672796,60995.0,60994.0,5.66099368]
[1719678919137,7.04672796,60995.0,60994.0,5.32039814]
[1719678919321,7.04672796,60995.0,60994.0,5.66098634]
[1719678924874,7.04672796,60995.0,60994.0,4.71977881]
[1719678925025,7.04672796,60995.0,60994.0,5.66097836]
[1719678926452,7.04672796,60995.0,60994.0,5.35694836]
[1719678926815,7.04672796,60995.0,60994.0,5.10441836]
[1719678927019,7.04672796,60995.0,60994.0,5.17891836]
[1719678928047,7.04672796,60995.0,60994.0,3.98824767]
[1719678928239,7.04672796,60995.0,60994.0,5.20200665]
[1719678929863,7.04672796,60995.0,60994.0,5.20200971]
[1719678931315,7.04672796,60995.0,60994.0,5.2020046]
[1719678932009,6.72487846,60995.0,60994.0,5.4315346]
[1719678932406,6.14427846,60995.0,60994.0,5.4315346]
[1719678934470,6.14427846,60995.0,60994.0,5.43149983]
[1719678937686,6.14427846,60995.0,60994.0,5.43150062]
[1719678940459,6.14427846,60995.0,60994.0,6.22633062]
[1719678940828,6.14427846,60995.0,60994.0,6.22626844]
[1719678942407,6.14427846,60995.0,60994.0,5.96686844]
[1719678944000,6.14427846,60995.0,60994.0,4.32567406]
[1719678944200,6.14427846,60995.0,60994.0,5.26685369]
[1719678944407,6.14427846,60995.0,60994.0,3.98509061]
[1719678944622,6.14427846,60995.0,60994.0,5.26684834]
[1719678945031,6.14427846,60995.0,60994.0,5.52624834]
[1719678945162,6.14427846,60995.0,60994.0,4.72024834]
[1719678945370,6.14427846,60995.0,60994.0,4.7090598]
[1719678946804,6.14427846,60995.0,60994.0,5.4090598]
[1719678947245,5.85383325,60995.0,60994.0,4.33164622]
[1719678947453,5.85383325,60995.0,60994.0,5.4090431]
[1719678947912,5.85383325,60995.0,60994.0,5.1496431]
[1719678948329,5.85383325,60995.0,60994.0,4.8437431]
[1719678950471,6.18103325,60995.0,60994.0,4.93705279]
[1719678950622,6.18103325,60995.0,60994.0,5.42025434]
[1719678950824,6.18103325,60995.0,60994.0,5.43135391]
[1719678951398,6.18103325,60995.0,60994.0,5.35685391]
[1719678951599,6.44723325,60995.0,60994.0,5.43135391]
[1719678952005,6.44723325,60995.0,60994.0,5.35685391]
[1719678952256,6.44723325,60995.0,60994.0,5.43135391]
[1719678952667,6.44723325,60995.0,60994.0,5.35685391]
[1719678952874,6.44723325,60995.0,60994.0,5.43135391]
[1719678953520,6.44723325,60995.0,60994.0,5.09082482]
[1719678953720,6.44723325,60995.0,60994.0,5.43142954]
[1719678956723,6.44723325,60995.0,60994.0,4.49017617]
[1719678956924,6.44723325,60995.0,60994.0,5.43142883]
[1719678959412,6.44723325,60995.0,60994.0,4.73142883]
[1719678962217,6.44723325,60995.0,60994.0,5.43142883]
[1719678962421,6.44723325,60995.0,60994.0,5.43142865]
[1719678965525,6.44723325,60995.0,60994.0,5.43142658]
[1719678965731,6.44723325,60995.0,60994.0,5.43144525]
[1719678965934,6.44723325,60995.0,60994.0,5.29520295]
[1719678966144,6.44723325,60995.0,60994.0,5.43144444]
[1719678968477,6.44723325,60995.0,60994.0,5.43144584]
[1719678968679,6.44723325,60995.0,60994.0,5.43144649]
[1719678969282,6.44723325,60995.0,60994.0,4.73144649]
[1719678970474,6.44723325,60995.0,60994.0,4.65694649]
[1719678970684,6.44723325,60995.0,60994.0,4.73144649]
[1719678971950,6.44723325,60995.0,60994.0,4.73145181]
[1719678973425,6.14472269,60995.0,60994.0,5.43145181]
[1719678974219,5.87852269,60995.0,60994.0,5.43145181]
[1719678974985,5.87852269,60995.0,60994.0,5.09084755]
[1719678975203,5.87852269,60995.0,60994.0,5.4314533]
[1719678975571,5.87852269,60995.0,60994.0,5.43145181]
[1719678978101,5.87852269,60995.0,60994.0,5.43145059]
[1719678978308,5.87852269,60995.0,60994.0,4.14959031]
[1719678978492,5.87852269,60995.0,60994.0,5.43145002]
[1719678979830,5.55132269,60995.0,60994.0,5.43145002]
[1719678980984,5.55132269,60995.0,60994.0,5.10335002]
[1719678981386,5.55132269,60995.0,60994.0,5.10334623]
[1719678982193,5.55132269,60995.0,60994.0,5.92927623]
[1719678982419,5.55132269,60995.0,60994.0,5.12327623]
[1719678982622,5.55132269,60995.0,60994.0,5.11217666]
[1719678982821,5.51537059,60995.0,60994.0,5.44027666]
[1719678983193,5.51537059,60995.0,60994.0,5.66980666]
[1719678984542,5.51537059,60995.0,60994.0,5.46531314]
[1719678984775,5.51537059,60995.0,60994.0,5.6696508]
[1719678984946,5.51537059,60995.0,60994.0,4.72851355]
[1719678985142,5.51537059,60995.0,60994.0,5.91630029]
[1719678985966,5.45358659,60995.0,60994.0,5.91630029]
[1719678986175,5.45358659,60995.0,60994.0,5.75020098]
[1719678986375,5.45358659,60995.0,60994.0,5.76130055]
[1719678986376,5.41358659,60995.0,60994.0,5.76130055]
[1719678987725,5.41358659,60995.0,60994.0,6.73085459]
[1719678987921,5.41073759,60995.0,60994.0,9.72414449]
[1719678988141,5.41073759,60995.0,60994.0,9.73524406]
[1719678988344,5.41073759,60995.0,60994.0,10.24614803]
[1719678990164,5.41073759,60995.0,60994.0,10.24612876]
[1719678990348,5.41073759,60995.0,60994.0,10.41208709]
[1719678990881,5.41073759,60995.0,60994.0,9.37318928]
[1719678991029,5.41073759,60995.0,60994.0,10.41208707]
[1719678991860,5.39473759,60995.0,60994.0,10.41208707]
[1719678992152,5.34673759,60995.0,60994.0,10.41208707]
[1719678993327,5.34673759,60995.0,60994.0,10.24612874]
[1719678993530,5.34673759,60995.0,60994.0,10.41208707]
[1719678993745,5.30373759,60995.0,60994.0,6.43803758]
[1719678993945,5.30373759,60995.0,60994.0,5.76117528]
[1719678994150,5.30373759,60995.0,60994.0,4.47960039]
[1719678994360,5.28973759,60995.0,60994.0,5.9149415]
[1719678994764,5.22173759,60995.0,60994.0,5.9149415]
[1719678995182,5.16373759,60995.0,60994.0,5.74905801]
[1719678995379,5.14973759,60995.0,60994.0,5.91392519]
[1719678995758,5.17773759,60995.0,60994.0,5.91584536]
[1719678996169,5.17773759,60995.0,60994.0,5.91484536]
[1719678996809,5.14973759,60995.0,60994.0,5.91384536]
[1719678997015,5.16373759,60995.0,60994.0,5.91484536]
[1719678997470,5.16373759,60995.0,60994.0,5.91478985]
[1719678997692,5.13664666,60995.0,60994.0,5.91578985]
[1719678997894,5.13664666,60995.0,60994.0,5.74994417]
[1719678998722,5.13664666,60995.0,60994.0,8.34509696]
[1719678998926,5.13664666,60995.0,60994.0,9.72399366]
[1719678999129,4.73273366,60995.0,60994.0,9.73509323]
[1719678999359,4.73273366,60995.0,60994.0,8.62038631]
[1719678999557,4.69273366,60995.0,60994.0,5.76104374]
[1719678999892,4.69273366,60995.0,60994.0,5.74994417]
[1719679000322,4.69273366,60995.0,60994.0,5.76104374]
[1719679000524,4.69273366,60995.0,60994.0,5.74989871]
[1719679002246,4.62173366,60995.0,60994.0,5.74989871]
[1719679003418,4.62173366,60995.0,60994.0,5.34129427]
[1719679003629,4.62173366,60995.0,60994.0,5.74989871]
[1719679004670,4.58473366,60995.0,60994.0,9.74659093]
[1719679005133,4.58473366,60995.0,60994.0,10.25737678]
[1719679005269,4.58473366,60995.0,60994.0,8.71498008]
[1719679005478,4.58473366,60995.0,60994.0,8.20419423]
[1719679006776,4.58473366,60995.0,60994.0,8.20417305]
[1719679010089,4.58473366,60995.0,60994.0,8.20415515]
[1719679011929,4.51273366,60995.0,60994.0,8.20415515]
[1719679012598,4.51273366,60995.0,60994.0,9.74655185]
[1719679013020,4.51273366,60995.0,60994.0,8.97589906]
[1719679013226,4.51273366,60995.0,60994.0,9.74656763]
[1719679013627,4.51273366,60995.0,60994.0,10.25735348]
[1719679013805,4.20983423,60995.0,60994.0,10.25735348]
[1719679014190,4.07827692,60995.0,60994.0,6.26066126]
[1719679014371,4.07827692,60995.0,60994.0,5.74987541]
[1719679014946,4.07827692,60995.0,60994.0,4.877018]
[1719679015135,4.07827692,60995.0,60994.0,5.74987584]